Cogmind - Beta 16.1 @@@ ROGUE MODE // 2026.02.14 @ 19:26:22 Player: Kaisercar Result: Self-destructed Performance ------------- Evolutions (3) 1500 Regions Visited (10) 2000 Robots Destroyed (170) 850 Value Destroyed (5782) 5782 Prototype IDs (34) 680 Alien Tech Used (0) 0 Bonus (1466) 1466 TOTAL SCORE: 12278 Bonus ------- High Alert Combat Kills 775 Follower Combat Kills 191 Entered Garrisons 200 Aligned with FarCom 300 Cogmind --------- Core Integrity 598/700 Matter 259/300 Energy 33/290 System Corruption 2% Temperature Cool (0) Movement Treading (212) Ox1 Location -7/Factory Parts ------- > --- POWER (1) -------- Improved Deuterium Engine > --- PROPULSION (4) --- Advanced Treads Medium Treads Armored Huge Wheel > --- UTILITY (6) ------ Heat Sink High-capacity Storage Unit Terrain Scanner Advanced Targeting Computer Hacking Suite > --- WEAPON (2) ------- Cooled Pulse Rifle (fused) Heavy Machine Gun > --- INVENTORY (20) --- Armored Huge Wheel High-capacity Matter Pod (200) Improved Terrain Scan Processor Target Analyzer Kinecellerator Weapon Cycler Focal Shield Improved Shield Generator Improved Hacking Suite High-powered Tractor Beam Heavy Particle Cannon Heavy Ion Cannon Gauss Rifle Rocket Launcher Field Lobotomy Kit (5) Impact Mace Peak State ------------ > --- POWER ------------ Improved Deuterium Engine > --- PROPULSION ------- Advanced Treads Medium Treads Armored Huge Wheel > --- UTILITY ---------- Heat Sink High-capacity Storage Unit Advanced Targeting Computer Improved Light Armor Plating Medium Insulated Plating Hacking Suite > --- WEAPON ----------- Cooled Pulse Rifle Assault Cannon > --- INVENTORY -------- Improved Deuterium Engine Improved Treads Armored Huge Wheel High-capacity Matter Pod Improved Terrain Scan Processor Target Analyzer Kinecellerator Weapon Cycler Hardlight Generator Improved Shield Generator Improved Hacking Suite High-powered Tractor Beam Heavy Particle Cannon Heavy Ion Cannon Gauss Rifle Heavy Machine Gun Rocket Launcher Field Lobotomy Kit Impact Mace [Rating: 49] Favorites ----------- Power Heavy Ion Engine Engine Heavy Ion Engine Power Core Light Nuclear Core Propulsion Light Treads Treads Light Treads Wheel Armored Huge Wheel Utility High-capacity Storage Unit Device Cooling System Storage High-capacity Storage Unit Processor Advanced Targeting Computer Hackware Hacking Suite Protection Medium Armor Plating Weapon Heavy Ion Cannon Energy Gun Heavy EM Shotgun Energy Cannon Heavy Ion Cannon Ballistic Gun Gauss Rifle Ballistic Cannon Assault Cannon Launcher Shock Bomb Launcher Impact Weapon Impact Mace Build | -11 -10 -10 -9 -9 -9 -8 -8 -8 -8 -7 ------- Run | Yrd Mat Min Mat Min Exi Min Mat Gar Mat Fac Slots Evolved 6 | . . . 2 . . . 2 . . 2 Power . | . . . . . . . . . . . Propulsion 2 | . . . 1 . . . . . . 1 Utility 4 | . . . 1 . . . 2 . . 1 Weapon . | . . . . . . . . . . . Parts Attached 106 | 6 7 5 16 3 . 2 28 16 11 12 Power 8 | 1 . 1 1 . . . 1 1 1 2 Engine 7 | 1 . . 1 . . . 1 1 1 2 Core 1 | . . 1 . . . . . . . . Reactor . | . . . . . . . . . . . Propulsion 29 | 2 . 1 3 2 . . 10 5 2 4 Treads 24 | 2 . . 1 2 . . 10 4 2 3 Leg . | . . . . . . . . . . . Wheel 5 | . . 1 2 . . . . 1 . 1 Hover . | . . . . . . . . . . . Flight . | . . . . . . . . . . . Utility 34 | 1 3 . 4 1 . . 10 6 5 4 Device 16 | . 1 . 2 . . . 5 2 3 3 Storage 4 | 1 2 . 1 . . . . . . . Processor 2 | . . . . . . . 2 . . . Hackware 1 | . . . . . . . . . 1 . Protection 11 | . . . 1 1 . . 3 4 1 1 Artifact . | . . . . . . . . . . . Weapon 35 | 2 4 3 8 . . 2 7 4 3 2 Energy Gun 9 | 1 . 1 4 . . . 2 . . 1 Energy Cannon 11 | . 2 . 3 . . . 3 . 3 . Ballistic Gun 8 | 1 1 2 . . . . 1 3 . . Ballistic Cannon 2 | . . . . . . 1 1 . . . Launcher 4 | . 1 . 1 . . 1 . 1 . . Special Weapon . | . . . . . . . . . . . Impact Weapon 1 | . . . . . . . . . . 1 Slashing Weapon . | . . . . . . . . . . . Piercing Weapon . | . . . . . . . . . . . Special Melee Weapon . | . . . . . . . . . . . Unidentified Prototypes 8 | . . . 3 . . . 3 . . 2 Parts Lost 18 | . . 2 . . . . 7 4 1 4 Power 1 | . . . . . . . . . . 1 Propulsion 6 | . . 1 . . . . 3 2 . . Utility 8 | . . 1 . . . . 3 2 . 2 Weapon 3 | . . . . . . . 1 . 1 1 Highest Loss Streak 3 | . . 2 . . . . 2 2 1 3 To Critical Strikes 1 | . . . . . . . . 1 . . Average Backups 18 | 2 10 15 17 19 20 20 18 19 19 19 Power . | . 1 1 1 1 1 1 . . 1 1 Propulsion 1 | . 1 2 1 1 1 1 2 1 2 1 Utility 8 | . 3 6 6 9 10 10 7 9 9 8 Weapon 6 | . 3 6 7 8 7 7 7 6 5 6 Tool/Special . | . . . . . . . . . . . Unused Backups 36 | . 3 . 4 4 1 1 6 1 3 13 Power 2 | . . . 1 . . . . . . 1 Propulsion 6 | . . . 1 . . . . 1 2 2 Utility 20 | . 3 . 1 3 . 1 3 . 1 8 Weapon 7 | . . . 1 1 1 . 3 . . 1 Tool/Special 1 | . . . . . . . . . . 1 Average Slot Usage (%) 97 | . 99 95 98 100 100 100 99 97 90 91 Engine 9 | . 14 5 6 11 11 11 8 8 9 7 Treads 25 | . 27 24 15 33 33 33 26 23 9 15 Wheel 2 | . . 1 17 . . . . 1 9 7 Device 13 | . 14 10 11 11 11 11 17 16 9 11 Storage 10 | . 14 14 11 11 11 11 9 9 9 7 Processor 4 | . . . . . . . 8 9 9 7 Protection 8 | . . . 10 11 11 11 9 10 10 10 Energy Gun 4 | . 2 . 11 11 11 8 4 . . 3 Energy Cannon 9 | . 17 11 9 11 11 10 8 7 2 3 Ballistic Gun 3 | . 8 16 . . . . . 4 13 2 Ballistic Cannon 1 | . . . . . . 2 4 . 2 3 Launcher 1 | . . . . . . . . 5 . . Peak Build Rating 49 | 6 9 12 24 23 23 23 35 36 40 49 Average Rating 26 | 4 8 10 21 22 22 22 28 33 37 46 On Entrance 20 | . 6 9 10 23 22 23 23 32 36 39 Avg Prop Armor Cover (%) 11 | . . 11 13 . . . . 6 7 12 Naked Turns . | . . . . . . . . . . . Heaviest Build 76 | 13 32 32 60 65 65 66 75 76 76 72 Greatest Support 62 | 40 40 40 40 60 60 60 62 62 28 51 Greatest Overweight (x) 3 | . 1 2 3 1 1 1 1 3 3 2 Average Overweight (x) 1 | . . . 2 . 1 1 1 1 2 1 Largest Inventory Capacity 20 | 8 15 15 20 20 20 20 20 20 20 20 Average Capacity 18 | 7 11 15 19 20 20 20 20 20 20 20 Most Carried 20 | 5 15 15 20 20 20 20 20 20 20 20 Average Carried 18 | 2 10 14 17 19 20 19 19 19 19 19 Final Capacity 20 | 8 15 15 20 20 20 20 20 20 20 20 Final Carried 20 | 5 15 15 19 20 20 20 20 20 20 17 Class Distribution -------------------- 63% | Mutant 21% | Scavenger-Skirmisher 12% | Scavenger-Mutant Dominant Class ---------------- Mutant | -10/Materials Mutant | -10/Mines Mutant | -9/Materials Mutant | -9/Mines Mutant | -9/Exiles Mutant | -8/Mines Scavenger-Skirmisher | -8/Materials Scavenger-Mutant | -8/Garrison Mutant | -8/Materials Mutant | -7/Factory Resources | -11 -10 -10 -9 -9 -9 -8 -8 -8 -8 -7 ----------- Run | Yrd Mat Min Mat Min Exi Min Mat Gar Mat Fac Matter Collected 3577 | 265 163 414 201 30 . 87 734 905 325 453 Remotely 129 | . . . . . . . . . 129 . Salvage Created 6246 | 83 639 405 577 240 . 204 1676 1511 353 558 Parts 340 | 7 26 15 37 20 . 16 72 95 24 28 Haulers Intercepted 12 | . 1 . 3 . . . 5 . 3 . Recyclers Shooed 3 | . 1 1 . . . . . . 1 . Parts Field Recycled . | . . . . . . . . . . . Retrieved Matter . | . . . . . . . . . . . Parts Self-Destructed . | . . . . . . . . . . . Prevented . | . . . . . . . . . . . Parts Restored . | . . . . . . . . . . . Kills | -11 -10 -10 -9 -9 -9 -8 -8 -8 -8 -7 ------- Run | Yrd Mat Min Mat Min Exi Min Mat Gar Mat Fac Combat Hostiles Destroyed 115 | . 9 11 10 4 . 7 30 35 6 3 Guns 36 | . 1 6 3 2 . 1 4 13 5 1 Cannons 49 | . 8 3 2 2 . 1 20 11 . 2 AOE 29 | . . 2 4 . . 5 6 11 1 . Classes Destroyed 19 | 2 6 1 2 2 . . 2 4 . . Worker 7 | . . . . 1 . 2 1 . . 3 Builder 6 | . . . 1 1 . . 1 . . 3 Tunneler 1 | 1 . . . . . . . . . . Hauler 12 | . 1 . 3 . . . 5 . 3 . Recycler 12 | 1 2 2 1 . . 1 2 . . 3 Mechanic 1 | . 1 . . . . . . . . . Operator 6 | . 2 . 2 . . . 2 . . . Watcher 17 | . 3 . 3 . . . 5 2 1 3 Swarmer 26 | . 3 . 3 . . 6 5 6 3 . Cutter 2 | . . . . . . . . 2 . . Grunt 47 | . 6 4 6 2 . 1 15 11 2 . Brawler 1 | . . . . . . . . 1 . . Duelist 3 | . . . . 1 . . 1 1 . . Sentry 20 | . . . 1 1 . . 7 9 1 1 Specialist 1 | . . . . . . . . 1 . . Hunter 2 | . . . . . . . 1 1 . . Programmer 5 | . . . . . . . . 3 . 2 Heavy 1 | . . . . . . . 1 . . . Assembled 7 | . . 7 . . . . . . . . Best Kill Streak 7 | 2 7 3 5 3 . 4 5 6 3 3 Combat Bots Only 6 | . 2 2 5 3 . 4 4 6 3 1 Max Kills in Single Turn 4 | 1 1 2 4 2 . 3 4 3 1 1 Gunslinging . | . . . . . . . . . . . Exploded 4 | . . 2 4 . . 3 3 3 1 . Melee . | . . . . . . . . . . . Uniques/NPCs Destroyed . | . . . . . . . . . . . Combat | -11 -10 -10 -9 -9 -9 -8 -8 -8 -8 -7 -------- Run | Yrd Mat Min Mat Min Exi Min Mat Gar Mat Fac Hostile Shots Fired 550 | . 36 39 25 15 . 14 144 135 42 100 Missed 162 | . 8 9 8 6 . 5 47 36 10 33 Hits 388 | . 28 30 17 9 . 9 97 99 32 67 Melee 16 | . . 5 . . . . 1 10 . . Projectile 372 | . 28 25 17 9 . 9 96 89 32 67 AOE 1 | . . . . . . . . 1 . . Critical Strikes 22 | . 1 2 . . . . 7 11 . 1 Part Disruptions 2 | . . 2 . . . . . . . . Damage Taken 6022 | . 340 493 261 107 . 136 1786 1368 396 1135 Core 837 | . 58 81 110 16 . 18 200 181 71 102 Absorbed by Shields 540 | . . . . . . . 148 220 96 76 Redirected to Shielding 52 | . . . 23 29 . . . . . . Ignored by Resistances 56 | . . . . . . . . . . 56 Regen/Repaired (Parts) 225 | . 160 . . . . . 65 . . . Core Remaining (%) 56 | 100 . 44 . . . 64 . . 17 . Volleys Fired 479 | 5 42 30 37 7 . 10 138 131 42 37 Largest 2 | 2 2 2 2 2 . 2 2 2 2 2 Hottest 140 | 70 120 105 136 118 . 118 136 102 140 105 Shots Fired 789 | 10 70 58 71 14 . 17 225 177 72 75 Gun 298 | 10 21 36 35 7 . 5 40 49 53 42 Cannon 435 | . 49 20 35 7 . 10 179 84 18 33 Launcher 56 | . . 2 1 . . 2 6 44 1 . Special . | . . . . . . . . . . . Kinetic 264 | 5 11 33 . . . 3 63 53 59 37 Thermal 434 | 5 59 20 58 7 . 7 148 80 12 38 Explosive 19 | . . 2 1 . . 2 6 7 1 . Electromagnetic 72 | . . 3 12 7 . 5 8 37 . . Robot Hit Streak 25 | 2 8 6 10 4 . 3 25 16 8 21 Robot Miss Streak 4 | 1 3 2 3 1 . 4 2 2 3 1 Penetration Max 1 | . . . . . . . . 1 . . Secondary Targets . | . . . . . . . . . . . Shots Hit Robots 465 | 5 43 38 41 10 . 7 138 83 40 60 Core Hits 245 | 3 21 23 20 8 . 12 66 61 14 17 Critical Kills 4 | . 1 . 1 . . . 1 1 . . Critical Parts Destroyed . | . . . . . . . . . . . Critical Strikes 11 | . 2 . 4 . . . 3 1 . 1 Burn 7 | . 1 . 3 . . . 2 . . 1 Meltdown 3 | . 1 . 1 . . . 1 . . . Destroy 1 | . . . . . . . . 1 . . Melee Attacks 6 | . . . . . . . . . . 6 Impact 6 | . . . . . . . . . . 6 Slashing . | . . . . . . . . . . . Piercing . | . . . . . . . . . . . Sneak Attacks . | . . . . . . . . . . . Combat Hostiles . | . . . . . . . . . . . Follow-up Attacks . | . . . . . . . . . . . Damage Inflicted 12860 | 54 673 655 1158 200 . 510 4262 2899 1007 1442 Guns 4286 | 54 139 376 539 116 . 97 669 803 734 759 Cannons 6250 | . 534 177 315 84 . 132 2756 1360 209 683 Explosions 2322 | . . 102 304 . . 281 835 736 64 . Melee . | . . . . . . . . . . . Ramming 2 | . . . . . . . 2 . . . Kinetic 3902 | 17 66 343 . . . 28 1078 871 835 664 Thermal 6347 | 37 607 177 665 84 . 104 2467 1320 108 778 Explosive 1507 | . . 102 262 . . 281 527 271 64 . Electromagnetic 1102 | . . 33 231 116 . 97 188 437 . . Impact . | . . . . . . . . . . . Slashing . | . . . . . . . . . . . Piercing . | . . . . . . . . . . . Highest Corruption 2 | . . . . . . . . 2 2 2 Average Corruption 1 | . . . . . . . . 1 2 1 Corruption Purged . | . . . . . . . . . . . Corruption Blocked . | . . . . . . . . . . . Effects 27 | . . . . . . . . 13 4 10 Message Errors 7 | . . . . . . . . 6 . 1 Matter Fused 6 | . . . . . . . . 1 2 3 Heat Flow Errors 6 | . . . . . . . . 2 1 3 Energy Discharges 2 | . . . . . . . . . 1 1 Parts Fused 2 | . . . . . . . . 1 . 1 Data Loss (minor) 3 | . . . . . . . . 3 . . Misfires 1 | . . . . . . . . . . 1 Overload Shots . | . . . . . . . . . . . Overflow Damage 173 | . . 5 5 . . . 81 1 . 81 Projectiles 127 | . . 5 5 . . . 36 . . 81 Explosions 46 | . . . . . . . 45 1 . . Melee . | . . . . . . . . . . . Knockbacks 14 | . . . . . . . 13 . . 1 Impact . | . . . . . . . . . . . Kinetic 14 | . . . . . . . 13 . . 1 Secondary . | . . . . . . . . . . . Self-Inflicted Damage 316 | . . . 40 . . . 113 163 . . Shots 14 | . . . 1 . . . 1 12 . . Rammed 1 | . . . . . . . 1 . . . Targets Rammed 1 | . . . . . . . 1 . . . Kicked . | . . . . . . . . . . . Crushed . | . . . . . . . . . . . Highest Temperature 334 | 80 276 221 126 8 . 33 30 274 334 200 Average Temperature 69 | 36 66 59 31 4 . 21 9 81 118 69 Received Heat Transfer 1735 | . 177 212 72 36 . 54 630 324 188 42 Effects 8 | . . 2 . . . . . . 6 . Shutdowns 1 | . . . . . . . . . 1 . Energy Bleed 2 | . . . . . . . . . 2 . Interference 5 | . . 2 . . . . . . 3 . Siege Activations . | . . . . . . . . . . . Martial Activations . | . . . . . . . . . . . Shielding Activations . | . . . . . . . . . . . Robots Disrupted . | . . . . . . . . . . . Combat Hostiles . | . . . . . . . . . . . Robots Corrupted . | . . . . . . . . . . . Combat Hostiles . | . . . . . . . . . . . Parts Fried 2 | . . . . . . . 2 . . . Impact Corruptions . | . . . . . . . . . . . Robots Melted 4 | . 1 . 2 . . . 1 . . . Combat Hostiles 1 | . . . 1 . . . . . . . Parts Melted 17 | 1 2 . 5 . . 2 5 . . 2 Heat Transferred 10486 | 111 1406 370 1480 148 . 185 3591 1789 148 1258 Parts Sabotaged . | . . . . . . . . . . . Parts Stolen . | . . . . . . . . . . . Parts Stripped . | . . . . . . . . . . . Power Chain Reactions 3 | . . . 1 . . . . 2 . . Alert | -11 -10 -10 -9 -9 -9 -8 -8 -8 -8 -7 ------- Run | Yrd Mat Min Mat Min Exi Min Mat Gar Mat Fac Maximum Alert Level 5 | . . . . . . . 1 5 3 2 Low Security (%) 66 | 100 100 100 100 100 . 100 84 . . 13 Level 1 14 | . . . . . . . 15 13 . 84 Level 2 4 | . . . . . . . . 26 . 1 Level 3 9 | . . . . . . . . 29 100 . Level 4 4 | . . . . . . . . 23 . . Level 5 1 | . . . . . . . . 6 . . High Security . | . . . . . . . . . . . Max Security . | . . . . . . . . . . . Peak Influence 1850 | 5 131 50 151 62 . 113 386 1850 985 408 Initial 901 | . . 1 . 42 . . . 245 901 408 Average 260 | . 44 8 84 12 . 39 98 872 948 275 Influence Increases 4670 | 10 357 153 333 270 . 311 1090 1645 254 247 Destroy 0b10 Robot/C 2340 | . 180 80 200 200 . 200 600 700 120 60 Destroy 0b10 Robot/NC 315 | 10 45 10 50 10 . 20 80 10 20 60 Destroy Leader 434 | . 48 20 42 30 . 30 180 10 38 36 Allied During Kill 60 | . . . . 30 . 26 4 . . . Successful Hack 104 | . 22 . 2 . . . 26 16 . 38 Disable Machine 300 | . 15 30 30 . . 15 90 75 45 . Anti-Garrison Action 650 | . . . . . . . . 650 . . Destroy Structure 317 | . 2 13 9 . . 20 110 139 16 8 Partial Spotted 15 | . 15 . . . . . . . . . Lose Combat Pursuer 135 | . 30 . . . . . . 45 15 45 Influence Decreases 4507 | 10 353 157 224 367 12 311 713 172 1205 983 Entered New Map 1654 | . . 3 . 67 12 . . 132 949 491 Time Decay 2498 | 10 353 151 224 260 . 311 491 . 246 452 Lost Part 163 | . . 3 . . . . 70 40 10 40 Lost Ally 42 | . . . . 40 . . 2 . . . Purge Threat 150 | . . . . . . . 150 . . . Squads Dispatched 16 | . 2 . 2 . . . 7 . 1 4 Investigation 3 | . . . . . . . 2 . 1 . Extermination 2 | . . . . . . . . . . 2 Reinforcement 10 | . 2 . 2 . . . 4 . . 2 Assault . | . . . . . . . . . . . Garrison 1 | . . . . . . . 1 . . . Intercept . | . . . . . . . . . . . Searches Triggered . | . . . . . . . . . . . Construction Impeded 1 | . . . . . . . 1 . . . Haulers Reinforced . | . . . . . . . . . . . Active Scanning Responses . | . . . . . . . . . . . Cargo Convoy Interrupts . | . . . . . . . . . . . Stealth | -11 -10 -10 -9 -9 -9 -8 -8 -8 -8 -7 --------- Run | Yrd Mat Min Mat Min Exi Min Mat Gar Mat Fac Distress Signals 9 | . 1 . 4 . . . 2 . 2 . Communications Jammed . | . . . . . . . . . . . Distress Signals . | . . . . . . . . . . . Times Spotted 176 | . 15 11 28 10 . 6 40 43 12 11 Peak Tracking Total 9 | . 3 2 6 3 . 3 4 9 4 6 Tactical Retreats 7 | . 2 . . . . . . 3 1 1 Traps | -11 -10 -10 -9 -9 -9 -8 -8 -8 -8 -7 ------- Run | Yrd Mat Min Mat Min Exi Min Mat Gar Mat Fac Traps Triggered 9 | . . . . . . . 2 5 1 1 Indirectly 1 | . . . . . . . . 1 . . Trap Hack Attempts . | . . . . . . . . . . . Triggered . | . . . . . . . . . . . Disarmed . | . . . . . . . . . . . Reprogrammed . | . . . . . . . . . . . Reused . | . . . . . . . . . . . Traps Extracted . | . . . . . . . . . . . Installed . | . . . . . . . . . . . Triggered . | . . . . . . . . . . . Machines | -11 -10 -10 -9 -9 -9 -8 -8 -8 -8 -7 ---------- Run | Yrd Mat Min Mat Min Exi Min Mat Gar Mat Fac Machines Disabled 26 | . 1 2 3 . . 1 6 10 3 . Max in Single Turn 2 | . 1 1 1 . . 1 2 2 1 . Garrison Relay 5 | . . . . . . . . 5 . . Machines Repaired . | . . . . . . . . . . . Machines Dismantled . | . . . . . . . . . . . Machines Sabotaged . | . . . . . . . . . . . Overloaded Fab Kills . | . . . . . . . . . . . Hacking | -11 -10 -10 -9 -9 -9 -8 -8 -8 -8 -7 --------- Run | Yrd Mat Min Mat Min Exi Min Mat Gar Mat Fac Machines Accessed 39 | . 7 . 5 . 2 . 10 4 1 10 Terminals 26 | . 4 . 3 . . . 7 4 1 7 Fabricators . | . . . . . . . . . . . Repair Stations 3 | . 1 . . . . . 1 . . 1 Recycling Units 4 | . 2 . 1 . . . . . . 1 Scanalyzers 3 | . . . 1 . . . 1 . . 1 Garrison Access 1 | . . . . . . . 1 . . . Total Hacks 107 | . 16 . 13 . 24 . 28 6 1 19 Successful 58 | . 9 . 4 . 24 . 13 2 . 6 Failed 49 | . 7 . 9 . . . 15 4 1 13 Catastrophic 14 | . 2 . 2 . . . 1 4 . 5 Database Lockouts . | . . . . . . . . . . . Manual 32 | . 9 . 3 . 1 . 12 . 1 6 Terminals 60 | . 9 . 8 . . . 22 6 1 14 Fabricators . | . . . . . . . . . . . Repair Stations 8 | . 4 . . . . . 2 . . 2 Recycling Units 7 | . 3 . 3 . . . . . . 1 Scanalyzers 7 | . . . 2 . . . 3 . . 2 Garrison Access 1 | . . . . . . . 1 . . . Terminal Hacks 37 | . 4 . 1 . 24 . 4 2 . 2 Record 23 | . . . . . 23 . . . . . Robot Analysis 3 | . 3 . . . . . . . . . Prototype ID Bank 1 | . . . . . . . . . . 1 Branch Access Points 1 | . 1 . . . . . . . . . Emergency Access Points 3 | . . . 1 . . . 1 1 . . Terminal Index 1 | . . . . . . . 1 . . . Unreport Threat 1 | . . . . . . . 1 . . . Hauler Manifests 1 | . . . . . . . . . . 1 Zone Layout 1 | . . . . . . . 1 . . . Security Stations 1 | . . . . . . . . 1 . . Proto ID Catalog 1 | . . . . . 1 . . . . . Fabricator Hacks . | . . . . . . . . . . . Repair Station Hacks 7 | . 4 . . . . . 2 . . 1 Scan Component 4 | . 2 . . . . . 1 . . 1 Repair 3 | . 2 . . . . . 1 . . . Recycling Unit Hacks 3 | . 1 . 1 . . . . . . 1 Retrieve Components 3 | . 1 . 1 . . . . . . 1 Scanalyzer 4 | . . . 2 . . . 2 . . . Retrieve Study 4 | . . . 2 . . . 2 . . . Garrison Access Hacks 1 | . . . . . . . 1 . . . Unlock Access 1 | . . . . . . . 1 . . . Unauthorized Hacks 6 | . . . . . . . 4 . . 2 Terminals 6 | . . . . . . . 4 . . 2 Botnet 5 | . . . . . . . 3 . . 2 Disrupt 1 | . . . . . . . 1 . . . Fabricators . | . . . . . . . . . . . Repair Stations . | . . . . . . . . . . . Recycling Units . | . . . . . . . . . . . Scanalyzers . | . . . . . . . . . . . Garrison Access . | . . . . . . . . . . . Data Cores Recovered 2 | . 1 . 1 . . . . . . . Used 1 | . . . 1 . . . . . . . Hacking Detections 30 | . 6 . 5 . . . 7 2 1 9 Full Trace Events 3 | . 1 . . . . . 2 . . . Feedback Events . | . . . . . . . . . . . Feedback Blocked . | . . . . . . . . . . . Robot Schematics Acquired . | . . . . . . . . . . . Robots Built . | . . . . . . . . . . . Authchips . | . . . . . . . . . . . Time . | . . . . . . . . . . . Total Robot Build Rating . | . . . . . . . . . . . Part Schematics Acquired . | . . . . . . . . . . . Parts Built . | . . . . . . . . . . . Authchips . | . . . . . . . . . . . Time . | . . . . . . . . . . . Total Part Build Rating . | . . . . . . . . . . . Part Studies Acquired 4 | . . . 2 . . . 2 . . . Parts Repaired 3 | . 2 . . . . . 1 . . . Time 78 | . 52 . . . . . 26 . . . Parts Recycled . | . . . . . . . . . . . Recycled Matter . | . . . . . . . . . . . Retrieved Matter . | . . . . . . . . . . . Retrieved Components 17 | . 1 . 10 . . . . . . 6 Parts Scanalyzed . | . . . . . . . . . . . Part Schematics Acquired . | . . . . . . . . . . . Parts Damaged . | . . . . . . . . . . . Bothacking | -11 -10 -10 -9 -9 -9 -8 -8 -8 -8 -7 ------------ Run | Yrd Mat Min Mat Min Exi Min Mat Gar Mat Fac Used RIF Installer . | . . . . . . . . . . . Robots Hacked . | . . . . . . . . . . . Non-combat . | . . . . . . . . . . . Combat . | . . . . . . . . . . . Robot Hacks Applied . | . . . . . . . . . . . Relay Couplers Released 22 | . . . . . . . . 19 . 3 Machine Destruction 19 | . . . . . . . . 19 . . Programmers 3 | . . . . . . . . . . 3 Fabnet Peak Effective % . | . . . . . . . . . . . Robots Rewired . | . . . . . . . . . . . Allies Hacked . | . . . . . . . . . . . Hacks Repelled . | . . . . . . . . . . . Allies | -11 -10 -10 -9 -9 -9 -8 -8 -8 -8 -7 -------- Run | Yrd Mat Min Mat Min Exi Min Mat Gar Mat Fac Total Allies 6 | . . . . 6 . . . . . . Largest Group 3 | . . . . 3 3 2 2 . . . Highest-Rated Group 81 | . . . . 81 40 32 32 . . . Highest-Rated Ally 31 | . . . . 31 16 16 16 . . . Initial Warlord ECA Mod 9 | . . . . . . . . . 9 8 Total Orders . | . . . . . . . . . . . Ally Attacks 59 | . . . . 32 . 21 6 . . . Total Damage 699 | . . . . 426 . 211 62 . . . Kills 10 | . . . . 6 . 4 . . . . Allies Corrupted . | . . . . . . . . . . . Allies Melted . | . . . . . . . . . . . Intel | -11 -10 -10 -9 -9 -9 -8 -8 -8 -8 -7 ------- Run | Yrd Mat Min Mat Min Exi Min Mat Gar Mat Fac Active Infowar (turns) 5084 | . 1068 620 . . . . 2848 . 203 345 Terrain 3193 | . . . . . . . 2848 . . 345 Traps 203 | . . . . . . . . . 203 . Seismic 1688 | . 1068 620 . . . . . . . . Robot Analysis Total 3 | . 3 . . . . . . . . . Derelict Logs Recovered 2 | . . 1 . 1 . . . . . . Drone Launches . | . . . . . . . . . . . Drone Recoveries . | . . . . . . . . . . . Exploration | -11 -10 -10 -9 -9 -9 -8 -8 -8 -8 -7 ------------- Run | Yrd Mat Min Mat Min Exi Min Mat Gar Mat Fac Turns Passed 13143 | 92 1068 799 588 1795 532 993 3362 2252 537 1125 Spaces Moved 5605 | 40 522 427 348 752 222 398 1040 870 290 696 Core 1 | 1 . . . . . . . . . . Treads 4058 | 39 522 357 1 752 222 398 1040 714 3 10 Legs . | . . . . . . . . . . . Wheels 1546 | . . 70 347 . . . . 156 287 686 Hover . | . . . . . . . . . . . Flight . | . . . . . . . . . . . Fastest Speed 50 | 50 160 110 95 160 240 240 212 130 130 115 Average Speed 192 | 157 160 158 118 228 240 240 238 206 132 131 Slowest Speed 400 | 160 240 240 240 240 240 240 240 400 400 240 Overloaded Moves . | . . . . . . . . . . . Propulsion Burnouts . | . . . . . . . . . . . Robots Hopped . | . . . . . . . . . . . Potential Cave-ins 4 | . . . . . . . 4 . . . Cave-ins Triggered . | . . . . . . . . . . . Exploration Rate (%) 60 | 3 68 76 34 99 60 82 85 91 39 23 Regions Visited 10 Branch Regions 4 Pre-discovered Areas 2 | . . 1 . . 1 . . . . . Known Exits Taken 2 | . 1 . . . . . 1 . . . Unknown Exits Taken 7 | 1 . 1 1 1 1 1 . . 1 . Scrap Searched 5 | . . 1 . 2 . 2 . . . . Spaces Dug 66 | . . . . . . . 51 5 5 5 Terrain Destroyed 238 | . . 16 8 . . 22 122 47 18 5 Melee 5 | . . . . . . . . . . 5 Projectile 72 | . . . . . . 2 55 4 11 . AOE 161 | . . 16 8 . . 20 67 43 7 . Terrain Rammed . | . . . . . . . . . . . Walls Destroyed . | . . . . . . . . . . . Machines Disabled . | . . . . . . . . . . . Actions | -11 -10 -10 -9 -9 -9 -8 -8 -8 -8 -7 --------- Run | Yrd Mat Min Mat Min Exi Min Mat Gar Mat Fac Total 7201 | 59 682 490 461 820 223 418 1697 1145 376 830 Wait 712 | . 86 19 9 36 . 4 431 74 7 46 Move 5596 | 39 521 426 347 751 221 397 1040 869 289 696 Hop . | . . . . . . . . . . . Pick Up 109 | 8 16 2 24 11 1 1 14 14 7 11 Fast Attach 31 | 4 2 1 5 1 . . 11 3 1 3 Attach 30 | 2 1 . 6 . . . 8 5 2 6 Detach 3 | . . . 1 . . . 1 . . 1 Swap 114 | . 7 9 8 2 . 5 30 26 17 10 Drop 114 | 1 7 3 24 12 1 1 23 17 11 14 Fire 479 | 5 42 30 37 7 . 10 138 131 42 37 Melee 6 | . . . . . . . . . . 6 Ram . | . . . . . . . . . . . Kick . | . . . . . . . . . . . Crush 1 | . . . . . . . 1 . . . Escape Stasis 6 | . . . . . . . . 6 . . Rewire . | . . . . . . . . . . . Trap . | . . . . . . . . . . . Miscellaneous . | . . . . . . . . . . . Route ------- -11/Scrapyard -10/Materials (discovered 3 exits: *Mat / *Min x2) -10/Mines (discovered 2 exits: *Mat / [*Sub]) -9/Materials -9/Mines (discovered 3 exits: *Mat x2 / *Exi) -9/Exiles -8/Mines (discovered 2 exits: *Mat x2) -8/Materials (discovered 3 exits: *Fac x2 / Gar) -8/Garrison (discovered 3 exits: *Mat x3) -8/Materials -7/Factory (discovered 3 exits: [*Fac x2] / [*Low]) History --------- Turn | Location | Event 17 | -11/Scrapyard | Discovered new exit (range 15) 93 | -11/Scrapyard | Entered Materials 172 | -10/Materials | Identified exit to Mines 325 | -10/Materials | Build established: Mutant 695 | -10/Materials | Repaired Lgt. Treads 722 | -10/Materials | Repaired Lgt. Treads 853 | -10/Materials | Discovered new exit (range 15) 1161 | -10/Materials | Entered Mines 1162 | -10/Mines | Assembled infested the area 1241 | -10/Mines | Learned Materials emergency access door positions 1545 | -10/Mines | Discovered new exit (range 6) 1615 | -10/Mines | Learned location of Storage (-9) 1787 | -10/Mines | Core integrity fell below 50% 1933 | -10/Mines | Discovered new exit (range 6) 1960 | -10/Mines | Entered Materials 1960 | -9/Materials | Evolved 2 slots: Propulsion x1, Utility x1 2470 | -9/Materials | Discovered new exit (range 6) 2548 | -9/Materials | Entered Mines 2563 | -9/Mines | Discovered new exit (range 5) 3111 | -9/Mines | Discovered new exit (range 5) 3272 | -9/Mines | Received a Rocket Launcher from a helpful Derelict 3434 | -9/Mines | Received a Mining Laser from a helpful Derelict 3781 | -9/Mines | Assisted by bots powering up and referring to "LRC-V3" 4323 | -9/Mines | Deemed a non-threat by the Exiles lab entrance 4326 | -9/Mines | Discovered new exit (range 5) 4343 | -9/Mines | Entered Exiles 4343 | -9/Exiles | Accompanied by 3 allies 4427 | -9/Exiles | Met 8R-AWN 4463 | -9/Exiles | Met EX-HEX 4528 | -9/Exiles | Met EX-BIN 4567 | -9/Exiles | Aligned with FarCom system 4569 | -9/Exiles | Given EX-Vault access code 4627 | -9/Exiles | Opened EX-Vault 4639 | -9/Exiles | Found Field Lobotomy Kit 4688 | -9/Exiles | Warned to stay clear of 0b10 Research branches 4725 | -9/Exiles | Exiles lab attacked by MAIN.C 4777 | -9/Exiles | Learned location of Zion (-6) 4856 | -9/Exiles | Discovered new exit (range 10) 4875 | -9/Exiles | Left Exiles lab with Field Lobotomy Kit 4875 | -9/Exiles | Entered Mines 4875 | -8/Mines | Accompanied by 3 allies 5545 | -8/Mines | Discovered new exit (range 5) 5823 | -8/Mines | Discovered new exit (range 5) 5868 | -8/Mines | Entered Materials 5868 | -8/Materials | Accompanied by 2 allies 5868 | -8/Materials | Evolved 2 slots: Utility x2 6146 | -8/Materials | Repaired Lgt. Treads 6449 | -8/Materials | Build established: Scavenger-Skirmisher 6486 | -8/Materials | Discovered new exit (range 13) 7284 | -8/Materials | Discovered new exit (range 4) 9069 | -8/Materials | Build established: Mutant 9201 | -8/Materials | Garrison activated, responded to threat 9230 | -8/Materials | Identified exit to Garrison 9230 | -8/Materials | Entered Garrison 9358 | -8/Garrison | Learned Materials security intel 9556 | -8/Garrison | Triggered checkpoint 9618 | -8/Garrison | Triggered checkpoint 9677 | -8/Garrison | Garrison Relay disabled 9709 | -8/Garrison | Garrison Relay disabled 9734 | -8/Garrison | Triggered checkpoint 10051 | -8/Garrison | Build established: Scavenger-Mutant 10109 | -8/Garrison | Discovered new exit (range 10) 10273 | -8/Garrison | Triggered checkpoint 10600 | -8/Garrison | Discovered new exit (range 8) 10669 | -8/Garrison | Triggered checkpoint 10791 | -8/Garrison | Garrison Relay disabled 10991 | -8/Garrison | Triggered checkpoint 11095 | -8/Garrison | Core integrity fell below 50% 11334 | -8/Garrison | Discovered new exit (range 11) 11362 | -8/Garrison | Triggered checkpoint 11394 | -8/Garrison | Garrison Relay disabled 11463 | -8/Garrison | Build established: Mutant 11482 | -8/Garrison | Entered Materials 11797 | -8/Materials | Core integrity fell below 20% 11971 | -8/Materials | Discovered new exit (range 5) 12019 | -8/Materials | Entered Factory 12019 | -7/Factory | Evolved 2 slots: Propulsion x1, Utility x1 12301 | -7/Factory | Discovered new exit (range 16) 12444 | -7/Factory | Discovered new exit (range 15) 12838 | -7/Factory | Discovered new exit (range 6) 12873 | -7/Factory | Allied Derelicts emerged from ambush trap array 13144 | -7/Factory | Self-destructed Last Messages --------------- 13020_ Nuclear Reactor explodes. 13020_ U-05 Engineer destroyed. 13020_ U-05 Engineer lays Concrete. 13022_ K-01 Serf collects debris. 13022_ K-01 Serf cleans the Recycling Unit. 13023_ U-05 Engineer lays Concrete. 13025_ K-01 Serf collects debris. 13026_ U-05 Engineer lays Concrete. 13027_ ALERT: Suspicious intruders detected, dispatching Specialist reinforcements to area. 13028_ U-05 Engineer lays Concrete. 13029_ K-01 Serf collects debris. 13029_ U-05 Engineer lays Concrete. 13032_ K-01 Serf collects debris. 13070_ Penetrated by Slug. 13070_ Assault Cannon+ destroyed. 13083_ System corrupted: Cld. Pulse Rifle fused. 13108_ Imp. Light Armor Plating destroyed. 13122_ Imp. Deuterium Engine destroyed. 13142_ Hardlight Generator destroyed. Map ----- +----------------------------------------------------+ | ?????????????????????????????????????????????????? | | ?????????????????????????????????????????????????? | | ?????????????????????????????????????????????????? | | ?????????????????????????????????????????????????? | | ?????????????????????????????????????????????????? | | ?????????????????????????????????????????????????? | | ?????????????????????????????????????????????????? | | ?????????????????????????????????????????????????? | | ?????????????????????????????????????????????????? | | ?????????????????????????????????????????????????? | | ?????????????????????????????????????????????????? | | ?????????????????????????????????????????????????? | | ?????????????????????????????????????????????????? | | ????????????????????????? ???????????????????????? | | ??????????????????#?????????"????????????????????? | | ?????????????????????????????????????????????????? | | ?????????????????????????????????????????????????? | | ???????????????????#?????#??"????????????????????? | | ??????????????????????????#??????????#???????????? | | ????????#??#????????#?##?????????????????????????? | | ?????????#???????????????????????????????????????? | | ?????????????????????###################?????????? | | ?????????????????????#! ?????????? | | ???????????########### = #????????? | | ??????????## = / [# #????????? | | ??????????#" ! # x @ #????????? | | ??????????## x ; "" "" """ ""????????????? | | ??????? ?## """"""" # ""F"" """ ??????????????? | | ???????????# """"""" # """ """???????????????? | | ? ?????????# """"""" # ???????????? | | ???????????# """"""" ;#########+##???????????????? | | ??????#????# ##??????????????????????????? | | ################+###### "##??????????????????????? | | ??????????????????? | | ^ ??????????????????? | | % Y?????????????????? | | ??????????????????? | | % ???????????????????? | | ######"##+######+########## ????????????????????? | | ????#! #?????????????? ???????????????????? | | ??#?# !#????"?????????????????????????????? | | ????# #? ????????????????????????????????? | | #???# ! = !#??????????????????????????????????? | | ???## #??????????????????????????????????? | | ##### """ """ #??????????????????????????????????? | | + """ """ #? ????????????????????????????????? | | ##### """ """ #??????????????????????????????????? | | ?#??###########??????????????????????????????????? | | ?????????????????????????????????????????????????? | | ?????????????????????????????????????????????????? | +----------------------------------------------------+ Best States ------------- Heat Dissipation 53 Energy Generation 16 Energy Capacity 290 Matter Stores 300 Matter Capacity 300 Sight Range 16 Terrain Scan Range 14 Terrain Scan Density 10 Armor Coverage 450 Resistance: EM 20 Propulsion Shielding 66 Weapon Cycling 15 Evasion (%) 41 Targeting Accuracy 8 Recoil Reduction 3 Offensive Hacking 10 Item Schematics ----------------- None Robot Schematics ------------------ None Fabricated ------------ Nothing Repaired ---------- Lgt. Treads | 37% | -10/Materials Lgt. Treads | 47% | -10/Materials Lgt. Treads | 53% | -8/Materials Studied --------- Rocket Launcher | -9/Materials | Hacked Beam Cannon | -9/Materials | Hacked Assault Cannon | -8/Materials | Hacked Adv. Treads | -8/Materials | Hacked Alien Tech Used ----------------- None Achievements -------------- None Challenges ------------ None Game ------ Seed FocalEnhancedSuit Manual? 0 Play Time 01:30:32 Cumulative 71.9 hours Start 2026.02.10 @ 23:59:23 End 2026.02.14 @ 19:26:22 Sessions 3 Manual Loads 0 Difficulty Rogue Special Mode None Game No. 110 Rogue 35 Adventurer 75 Explorer 0 Win Type - Total 2 Types 2/0/0/0/0/0/0/0/0/0 Lore% 39 Gallery% 42 Achievement% 30 Wizard Run 0 Options --------- Layout 2 ASCII 0 Keyboard 0 Movement Numpad Keybinds 0 Fullscreen 2 Font 24/Smallcaps Map View 50x44 Zoom Use 0% Tactical HUD 1 Map Filters NONE Filters NONE Steam 1 RUN: 157391ac-8434-49d9-b4e4-bd7cf2ffcbc2